bitfinex/quotes_SOLUSD_20250129
["timestamp","ask_amount","ask_price","bid_price","bid_amount"]
[1738132441018,6.8404255,232.25,232.21,0.12549]
[1738132442121,6.8404255,232.25,232.2,0.12549]
[1738132443744,6.8404255,232.25,232.21,2.52809124]
[1738132444736,6.8404255,232.25,232.22,2.52809124]
[1738132446138,6.8404255,232.25,232.22,0.12549]
[1738132447536,6.8404255,232.25,232.21,23.902374]
[1738132448938,6.8404255,232.25,232.22,2.53017182]
[1738132449122,6.8404255,232.23,232.22,2.53017182]
[1738132450436,6.8404255,232.23,232.17,2.53017182]
[1738132450635,6.8404255,232.21,232.17,2.53017182]
[1738132451348,6.8404255,232.19,232.17,2.53017182]
[1738132452041,6.8404255,232.19,232.16,6.5841]
[1738132452224,6.8404255,232.17,232.15,0.03]
[1738132452424,6.8404255,232.16,232.15,0.03]
[1738132452624,9.4248255,232.16,232.15,0.03]
[1738132461856,6.8404255,232.16,232.15,0.03]
[1738132462030,6.8404255,232.2,232.15,0.03]
[1738132462846,6.8404255,232.19,232.15,0.03]
[1738132463028,6.8404255,232.18,232.15,0.03]
[1738132463844,6.8404255,232.19,232.15,0.03]
[1738132465635,6.8404255,232.18,232.15,0.03]
[1738132466454,6.8404255,232.16,232.15,0.03]
[1738132468157,9.4248255,232.16,232.15,0.03]
[1738132470145,6.8404255,232.16,232.15,0.03]
[1738132471531,9.4248255,232.16,232.15,0.03]
[1738132477457,6.8404255,232.16,232.15,0.03]
[1738132479665,9.4248255,232.16,232.15,0.03]
[1738132482145,6.8404255,232.16,232.15,0.03]
[1738132483348,8.27233328,232.16,232.12,2.52916449]
[1738132483655,6.8404255,232.13,232.12,2.52916449]
[1738132483856,6.8404255,232.13,232.1,0.03]
[1738132484055,6.8404255,232.11,232.1,0.03]
[1738132485452,34.821602,232.2,232.1,0.03]
[1738132485453,6.8404255,232.13,232.1,0.03]
[1738132485659,6.8404255,232.19,232.13,36.5551]
[1738132485862,6.8404255,232.2,232.15,0.12549]
[1738132486146,6.8404255,232.18,232.15,0.12549]
[1738132486351,6.8404255,232.2,232.15,6.07689]
[1738132486868,6.8404255,232.2,232.17,0.12549]
[1738132487651,6.8404255,232.19,232.17,0.12549]
[1738132488259,6.8404255,232.2,232.17,0.12549]
[1738132489572,0.063,232.22,232.17,0.12549]
[1738132489573,6.8404255,232.19,232.17,0.12549]
[1738132494162,6.8404255,232.19,232.18,2.66020835]
[1738132494472,6.9034255,232.19,232.18,2.53471835]
[1738132495276,6.9034255,232.19,232.15,1.6739]
[1738132495481,6.8404255,232.17,232.15,1.6739]
[1738132495775,6.8404255,232.18,232.15,1.6739]
[1738132495970,0.063,232.19,232.18,20.0]
[1738132496190,0.063,232.19,232.18,43.776884]
[1738132496561,0.063,232.19,232.18,48.083884]
[1738132497378,0.063,232.19,232.18,55.0497995]
[1738132497585,0.063,232.19,232.18,61.5076995]
[1738132498282,0.063,232.19,232.18,64.0413646]
[1738132498580,6.8404255,232.24,232.18,33.2985651]
[1738132499080,6.8404255,232.25,232.19,23.902374]
[1738132499291,6.8404255,232.25,232.19,30.7427995]
[1738132499584,6.8404255,232.25,232.19,33.2764646]
[1738132500071,6.8404255,232.25,232.23,0.12549]
[1738132500681,6.8404255,232.25,232.19,2.5336651]
[1738132500983,6.8404255,232.25,232.19,6.8403651]
[1738132501279,6.8404255,232.25,232.2,23.902374]
[1738132501970,6.8404255,232.26,232.23,0.12549]
[1738132502372,6.8404255,232.28,232.23,0.12549]
[1738132502604,6.8404255,232.31,232.26,0.12549]
[1738132503167,6.8404255,232.31,232.28,0.12549]
[1738132503673,0.063,232.32,232.28,23.902374]
[1738132503976,0.063,232.32,232.28,28.207474]
[1738132504990,0.063,232.32,232.28,23.902374]
[1738132505190,6.9034255,232.32,232.28,23.902374]
[1738132505369,6.8404255,232.31,232.28,23.902374]
[1738132506290,6.9034255,232.32,232.28,23.902374]
[1738132507566,6.9034255,232.32,232.28,28.207374]
[1738132507766,6.9034255,232.32,232.28,23.902374]
[1738132508661,0.063,232.32,232.28,28.207374]
[1738132509586,6.9034255,232.32,232.28,23.902374]
[1738132510670,6.9034255,232.32,232.28,28.207474]
[1738132510878,0.063,232.32,232.28,28.207474]
[1738132511973,0.063,232.32,232.31,30.7427995]
[1738132512175,0.063,232.32,232.31,32.2565995]
[1738132512970,0.063,232.37,232.35,25.521774]
[1738132513286,71.44233558,232.5,232.45,23.902374]
[1738132513475,6.8404255,232.49,232.45,23.902374]
[1738132514091,64.60191008,232.5,232.45,28.204274]
[1738132514304,64.60191008,232.5,232.47,23.902374]
[1738132514603,74.76788083,232.5,232.47,23.902374]
[1738132515184,64.10191008,232.5,232.47,23.902374]
[1738132515579,74.76788083,232.5,232.47,23.902374]
[1738132515878,64.10191008,232.5,232.47,23.902374]
[1738132516694,10.66597075,232.48,232.47,0.12549]
[1738132516992,10.66597075,232.49,232.47,0.12549]
[1738132517190,74.76788083,232.5,232.47,0.12549]
[1738132518303,74.76788083,232.5,232.47,23.902374]
[1738132518683,64.10191008,232.5,232.47,23.902374]
[1738132519080,10.66597075,232.49,232.47,23.902374]
[1738132519903,74.76788083,232.5,232.47,23.902374]
[1738132520691,64.10191008,232.5,232.47,23.902374]
[1738132523409,64.10191008,232.5,232.47,53.902374]
[1738132524605,63.60191008,232.5,232.47,53.902374]
[1738132528499,63.60191008,232.5,232.47,23.902374]
[1738132529293,74.26788083,232.5,232.47,23.902374]
[1738132530013,74.26788083,232.5,232.47,23.965374]
[1738132530311,74.29788083,232.5,232.47,23.965374]
[1738132531516,10.66597075,232.48,232.47,0.063]
[1738132532300,1.0,232.57,232.47,0.063]
[1738132532301,13.252717,232.67,232.66,31.0]
[1738132532514,83.75043983,232.9,232.86,1.0]
[1738132532713,73.08446908,232.9,232.86,1.0]
[1738132533021,73.08446908,232.9,232.87,30.66597075]
[1738132533321,73.08446908,232.9,232.89,31.0]
[1738132533629,31.02920129,232.9,232.89,71.81977075]
[1738132533809,16.99257448,232.9,232.89,67.52597075]
[1738132534405,2.66374831,232.92,232.91,21.0]
[1738132534621,2.66374831,232.92,232.91,31.66597075]
[1738132534798,10.90295751,233.03,232.98,1.0]
[1738132534996,10.90295751,233.03,232.95,20.0]
[1738132534997,0.23698676,233.03,233.0,1.0]
[1738132535495,0.23698676,233.03,233.02,1.0]
[1738132537196,10.66597075,233.07,233.02,1.0]
[1738132537401,10.66597075,233.06,233.02,1.0]
[1738132537704,15.94014672,233.25,233.03,1.0]
[1738132537909,10.66597075,233.07,233.03,1.0]
[1738132538109,10.66597075,233.05,233.02,1.0]
[1738132538308,10.66597075,233.03,233.01,31.26041013]
[1738132538709,10.66597075,233.02,233.01,32.26041013]
[1738132539022,10.66597075,233.02,233.01,31.26041013]
[1738132539620,10.66597075,233.03,233.01,32.26041013]
[1738132539922,10.66597075,233.03,233.01,20.89298827]
[1738132540323,10.94754146,233.22,233.01,19.89298827]
[1738132540506,10.94754146,233.22,233.03,21.78934842]
[1738132540701,19.38396629,233.04,233.03,21.78934842]
[1738132540902,10.66597075,233.04,233.02,10.66597075]
[1738132542227,0.03,233.02,233.01,20.89298827]
[1738132543015,0.03,233.02,233.01,19.89298827]
[1738132545511,10.69597075,233.02,233.01,19.89298827]
[1738132546023,10.69597075,233.02,233.01,8.827e-05]
[1738132547735,2.1458,233.01,232.94,1.0]
[1738132547911,10.66597075,232.95,232.93,119.926748]
[1738132548352,10.66597075,232.94,232.93,116.386448]
[1738132548554,21.3319415,232.94,232.93,18.00753494]
[1738132549724,41.45926567,232.94,232.82,1.0]
[1738132550032,10.66597075,232.85,232.84,1.0]
[1738132550246,10.66597075,232.85,232.79,2.0]
[1738132550425,10.66597075,232.85,232.82,1.0]
[1738132550618,17.01811172,232.85,232.82,1.0]
[1738132550817,17.01811172,232.85,232.83,1.0]
[1738132551232,9.91439607,232.84,232.83,1.0]
[1738132553040,9.91439607,232.84,232.79,1.0]
[1738132553237,17.01811172,232.82,232.75,2.0]
[1738132553446,17.01811172,232.82,232.75,1.0]
[1738132553661,17.01811172,232.8,232.73,1.0]
[1738132553826,17.01811172,232.78,232.69,17.01811172]
[1738132554226,17.01811172,232.8,232.71,17.01811172]
[1738132554433,8.62599607,232.79,232.71,17.01811172]
[1738132554631,25.64410779,232.79,232.71,17.01811172]
[1738132555032,37.14543589,232.79,232.71,17.01811172]
[1738132555237,1.2887,232.78,232.71,17.01811172]
[1738132555941,27.27937577,232.78,232.71,17.01811172]
[1738132556147,30.15470779,232.78,232.69,17.01811172]
[1738132556328,30.15470779,232.78,232.7,17.01811172]
[1738132556845,2.87533202,232.77,232.72,17.01811172]
[1738132557146,2.87533202,232.77,232.73,17.01811172]
[1738132557332,1.2888,232.76,232.73,17.01811172]
[1738132557845,1.2888,232.76,232.71,17.01811172]
[1738132558526,1.2888,232.76,232.69,17.01811172]
[1738132561047,1.7185,232.76,232.69,17.01811172]
[1738132561444,18.73661172,232.76,232.69,17.01811172]
[1738132561641,1.7185,232.76,232.7,17.01811172]
[1738132562023,1.7185,232.76,232.72,17.01811172]
[1738132562548,1.7185,232.76,232.7,17.01811172]
[1738132563245,26.19569362,232.79,232.74,17.01811172]
[1738132563446,26.19569362,232.79,232.76,17.01811172]
[1738132563657,26.19569362,232.79,232.73,20.12549]
[1738132563658,26.19569362,232.79,232.75,17.01811172]
[1738132563850,26.19569362,232.79,232.76,17.01811172]
[1738132564627,26.19569362,232.79,232.75,17.14360172]
[1738132565346,1.7182,232.8,232.75,17.14360172]
[1738132565947,52.36047723,232.81,232.75,17.14360172]
[1738132566631,54.07857723,232.81,232.75,17.14360172]
[1738132566844,52.36047723,232.81,232.77,0.12549]
[1738132567252,52.36047723,232.81,232.8,17.14360172]
[1738132568131,1.7176,232.87,232.8,17.14360172]
[1738132568347,17.01811172,232.85,232.78,17.01811172]
[1738132568831,17.01811172,232.86,232.79,17.01811172]
[1738132569032,1.7176,232.87,232.81,17.01811172]
[1738132569233,1.7176,232.87,232.85,17.01811172]
[1738132569468,4.2935,232.91,232.86,17.01811172]
[1738132569469,1.7174,232.91,232.86,17.01811172]
[1738132569657,1.7174,232.91,232.82,0.12549]
[1738132569658,1.7174,232.91,232.88,17.01811172]
[1738132570148,1.7172,232.93,232.89,17.01811172]
[1738132570363,1.7172,232.93,232.84,0.12549]
[1738132570364,1.7172,232.93,232.91,17.01811172]
[1738132570551,4.2921,232.99,232.85,0.42933551]
[1738132570552,17.01811172,232.95,232.88,40.92048572]
[1738132570732,17.01811172,232.97,232.9,17.01811172]
[1738132571641,17.01811172,232.96,232.89,17.01811172]
[1738132571842,17.01811172,232.93,232.86,17.01811172]
[1738132572134,17.01811172,232.91,232.83,17.01811172]
[1738132572734,17.01811172,232.91,232.84,23.902374]
[1738132572935,1.7174,232.91,232.85,17.01811172]
[1738132573463,18.73551172,232.91,232.84,17.01811172]
[1738132573958,1.7174,232.91,232.84,17.01811172]
[1738132574550,1.7174,232.91,232.85,0.12549]
[1738132574746,1.7174,232.91,232.86,17.01811172]
[1738132575152,17.01811172,232.94,232.86,17.01811172]
[1738132576560,17.01811172,232.9,232.82,17.01811172]
[1738132576768,17.01811172,232.88,232.8,17.01811172]
[1738132577264,1.7176,232.87,232.8,17.01811172]
[1738132577868,17.01811172,232.86,232.79,17.01811172]
[1738132578163,1.7178,232.85,232.78,17.01811172]
[1738132578364,17.01811172,232.84,232.77,17.01811172]
[1738132578566,17.01811172,232.83,232.76,17.01811172]
[1738132579262,17.01811172,232.84,232.76,17.01811172]
[1738132579464,18.73591172,232.85,232.77,17.01811172]
[1738132580669,17.01811172,232.84,232.76,17.14360172]
[1738132581086,17.01811172,232.81,232.73,17.01811172]
[1738132581367,17.01811172,232.8,232.72,17.01811172]
[1738132581574,17.01811172,232.84,232.76,17.01811172]
[1738132582154,1.7178,232.85,232.78,17.01811172]
[1738132582467,17.01811172,232.89,232.81,17.01811172]
[1738132582665,17.01811172,232.91,232.83,17.01811172]
[1738132583375,17.01811172,232.9,232.83,17.01811172]
[1738132583557,17.01811172,232.9,232.81,17.01811172]
[1738132583752,1.7175,232.89,232.83,17.01811172]
[1738132584181,4.3229,232.94,232.87,17.01811172]
[1738132584359,0.03,232.94,232.93,17.01811172]
[1738132584763,0.03,232.94,232.93,17.14360172]
[1738132585156,0.03,232.94,232.93,40.92048572]
[1738132585767,0.03,232.94,232.93,45.21358572]
[1738132586071,0.03,232.94,232.93,40.92048572]
[1738132586855,0.03,232.94,232.93,17.14360172]
[1738132587986,0.03,232.94,232.93,40.92048572]
[1738132588555,0.03,232.94,232.93,70.92048572]
[1738132588758,0.03,232.94,232.93,72.44898572]
[1738132589880,0.03,232.94,232.93,72.87806025]
[1738132590480,0.03,232.94,232.93,78.48563733]
[1738132591571,0.03,232.94,232.93,61.46752561]
[1738132591973,0.03,232.94,232.93,58.35220501]
[1738132592365,0.03,232.94,232.93,55.85994853]
[1738132594091,0.03,233.02,233.01,50.12549]
[1738132594267,0.03,233.02,233.01,70.18360172]
[1738132594466,0.03,233.02,233.01,70.61257014]
[1738132594665,0.03,233.02,233.01,94.38945414]
[1738132594890,0.03,233.02,233.01,93.96048572]
[1738132595889,0.03,233.02,233.01,63.96048572]
[1738132596964,0.03,233.02,233.01,46.942374]
[1738132597178,0.03,233.02,233.01,3.16549]
[1738132598185,0.03,233.02,233.01,46.942374]
[1738132598387,0.03,233.02,233.01,63.96048572]
[1738132599875,0.03,233.02,233.01,64.3894325]
[1738132601775,17.01811172,233.18,233.09,0.12549]
[1738132601978,1.7154,233.19,233.13,0.12549]
[1738132602495,17.01811172,233.18,233.12,0.12549]
[1738132603195,17.01811172,233.18,233.13,0.12549]
[1738132603373,17.01811172,233.2,233.13,0.12549]
[1738132604091,17.01811172,233.2,233.12,20.0]
[1738132604316,17.01811172,233.18,233.12,20.0]
[1738132605182,17.01811172,233.18,233.11,23.902374]
[1738132605793,17.01811172,233.2,233.13,0.12549]
[1738132606501,1.7153,233.19,233.13,0.12549]
[1738132607188,17.01811172,233.18,233.1,17.01811172]
[1738132607581,17.01811172,233.18,233.11,23.902374]
[1738132609003,1.7153,233.19,233.13,0.12549]
[1738132609180,1.7152,233.21,233.15,0.12549]
[1738132609377,17.01811172,233.22,233.15,0.12549]
[1738132610003,18.73321172,233.22,233.15,0.12549]
[1738132610201,17.01811172,233.26,233.19,43.776884]
[1738132610579,10.5967751,233.27,233.19,54.3736591]
[1738132611096,1.7147,233.27,233.22,0.12549]
[1738132611304,12.3110751,233.33,233.24,10.5967751]
[1738132611809,12.3110751,233.33,233.25,0.12549]
[1738132612099,10.5967751,233.31,233.25,0.12549]
[1738132612302,10.5967751,233.33,233.26,10.5967751]
[1738132612501,1.7142,233.35,233.29,0.12549]
[1738132612502,10.5967751,233.35,233.29,0.12549]
[1738132613017,12.3108751,233.35,233.29,0.12549]
[1738132613198,10.5967751,233.35,233.28,10.5967751]
[1738132613994,16.6877751,233.4,233.25,10.5967751]
[1738132613995,12.3110751,233.33,233.25,10.5967751]
[1738132614320,12.3110751,233.33,233.26,0.12549]
[1738132614687,16.94764697,233.29,233.24,20.0]
[1738132614924,16.94764697,233.25,233.17,3.0]
[1738132615113,16.94764697,233.23,233.17,3.0]
[1738132615404,16.94764697,233.28,233.1,16.94764697]
[1738132615405,16.94764697,233.19,233.1,16.94764697]
[1738132615611,16.94764697,233.17,233.1,16.94764697]
[1738132616487,1.7155,233.16,233.1,16.94764697]
[1738132616686,16.94764697,233.21,233.15,0.12549]
[1738132617116,1.7148,233.26,233.1,16.94764697]
[1738132617117,16.94764697,233.17,233.1,16.94764697]
[1738132617295,16.94764697,233.15,233.08,23.34644697]
[1738132617611,16.94764697,233.14,233.09,0.12549]
[1738132617785,16.94764697,233.14,233.06,16.94764697]
[1738132617985,14.5759,233.26,233.04,3.02]
[1738132617986,16.94764697,233.11,233.04,3.02]
[1738132618203,16.94764697,233.11,233.04,0.12549]
[1738132618522,16.94764697,233.09,233.02,0.063]
[1738132619419,16.94764697,233.09,233.02,0.18849]
[1738132619720,1.7159,233.11,233.06,0.12549]
[1738132620021,16.94764697,233.16,233.08,0.12549]
[1738132620415,18.66314697,233.16,233.08,0.12549]
[1738132620709,16.94764697,233.1,233.03,16.94764697]
[1738132620905,16.94764697,233.08,233.02,0.063]
[1738132621597,16.94764697,233.1,233.03,0.12549]
[1738132622510,16.94764697,233.04,233.02,0.063]
[1738132624011,16.94764697,233.06,233.02,0.063]
[1738132624517,16.94764697,233.04,233.02,0.063]
[1738132625016,18.66384697,233.08,233.02,0.063]
[1738132625218,16.94764697,233.12,233.04,16.94764697]
[1738132625423,16.94764697,233.14,233.07,0.12549]
[1738132625723,18.66334697,233.14,233.07,0.12549]
[1738132626096,16.94764697,233.14,233.07,0.12549]
[1738132626622,16.94764697,233.16,233.09,0.12549]
[1738132627016,18.66314697,233.16,233.09,0.12549]
[1738132627400,16.94764697,233.14,233.06,16.94764697]
[1738132627601,1.7155,233.16,233.02,0.063]
[1738132627602,16.94764697,233.07,233.02,0.063]
[1738132628619,16.94764697,233.09,233.03,0.12549]
[1738132628996,16.94764697,233.07,233.03,0.12549]
[1738132632714,0.03,233.08,233.05,0.12549]
[1738132632907,0.03,233.08,233.07,36.94764697]
[1738132633426,0.03,233.08,233.07,60.85002097]
[1738132634003,0.03,233.08,233.07,61.2789274]
[1738132634202,0.03,233.08,233.07,65.5694274]
[1738132634404,16.94764697,233.23,233.13,0.12549]
[1738132634622,16.94764697,233.23,233.16,16.94764697]
[1738132634926,16.94764697,233.23,233.17,0.12549]
[1738132635628,18.66264697,233.23,233.17,0.12549]
[1738132637129,16.94764697,233.22,233.16,0.12549]
[1738132637427,16.94764697,233.21,233.16,0.12549]
[1738132637929,16.94764697,233.21,233.13,16.94764697]
[1738132638106,16.94764697,233.16,233.11,6.153]
[1738132638313,16.94764697,233.17,233.12,0.12549]
[1738132638626,16.94764697,233.19,233.15,0.12549]
[1738132639006,16.94764697,233.19,233.14,20.0]
[1738132639322,16.94764697,233.18,233.14,20.0]
[1738132639505,16.94764697,233.19,233.14,20.0]
[1738132640018,16.94764697,233.19,233.12,0.12549]
[1738132640221,16.94764697,233.14,233.06,16.94764697]
[1738132640423,16.94764697,233.13,233.09,0.12549]
[1738132640637,16.94764697,233.11,233.05,6.5917]
[1738132640830,16.94764697,233.11,233.05,10.8824]
[1738132641134,16.94764697,233.11,233.09,2.49193916]
[1738132641514,16.94764697,233.1,233.09,2.49193916]
[1738132642236,16.94764697,233.1,233.06,3.11555373]
[1738132642446,16.94764697,233.07,233.06,3.11555373]
[1738132643310,16.94764697,233.07,233.02,0.063]
[1738132643510,16.94764697,233.04,233.02,0.063]
[1738132643920,16.94764697,233.06,233.02,0.063]
[1738132644215,16.94764697,233.08,233.02,0.063]
[1738132647854,18.66354697,233.11,233.03,17.07313697]
[1738132648029,16.94764697,233.12,233.06,0.12549]
[1738132648853,16.94764697,233.12,233.03,40.85002097]
[1738132649142,18.66344697,233.12,233.03,45.14112097]
[1738132650144,16.94764697,233.1,233.03,17.07313697]
[1738132650356,16.94764697,233.07,233.02,0.063]
[1738132651342,16.94764697,233.05,233.02,0.063]
[1738132651545,16.94764697,233.07,233.02,0.063]
[1738132652456,16.94764697,233.05,233.02,0.063]
[1738132652762,16.94764697,233.03,233.02,0.063]
[1738132653553,18.66414697,233.03,233.02,0.063]
[1738132655059,1.7165,233.03,233.02,0.063]
[1738132655763,18.66414697,233.03,233.02,0.063]
[1738132658356,16.94764697,233.04,233.02,0.063]
[1738132658940,16.94764697,233.03,233.02,0.063]
[1738132659563,16.94764697,233.05,233.02,0.063]
[1738132659772,16.94764697,233.07,233.02,0.063]
[1738132660438,16.94764697,233.07,233.02,0.18849]
[1738132660675,16.94764697,233.1,233.04,0.12549]
[1738132660835,16.94764697,233.12,233.06,0.12549]
[1738132661040,18.66334697,233.14,233.06,0.12549]
[1738132661278,16.94764697,233.14,233.08,0.12549]
[1738132663692,16.94764697,233.16,233.1,0.12549]
[1738132663984,16.94764697,233.18,233.12,0.12549]
[1738132664188,18.66304697,233.18,233.12,0.12549]
[1738132665988,16.94764697,233.22,233.13,21.36253697]
[1738132666186,16.94764697,233.22,233.14,0.12549]
[1738132667172,18.66274697,233.22,233.14,0.12549]
[1738132667686,16.94764697,233.22,233.17,0.12549]
[1738132667874,16.94764697,233.2,233.17,0.12549]
[1738132668074,16.94764697,233.2,233.15,1.619]
[1738132668275,16.94764697,233.2,233.14,3.02]
[1738132668695,16.94764697,233.2,233.15,0.12549]
[1738132669190,16.94764697,233.18,233.09,18.59024697]
[1738132669399,16.94764697,233.16,233.09,1.6426]
[1738132669764,16.94764697,233.14,233.07,16.94764697]
[1738132669977,16.94764697,233.12,233.06,10.608]
[1738132670382,16.94764697,233.12,233.07,0.12549]
[1738132670564,16.94764697,233.14,233.07,0.12549]
[1738132672172,4.2879,233.22,233.11,20.0]
[1738132672173,16.94764697,233.16,233.11,20.0]
[1738132672381,0.03,233.23,233.09,0.12549]
[1738132672382,16.94764697,233.21,233.16,0.12549]
[1738132672584,16.94764697,233.21,233.14,16.94764697]
[1738132672788,16.94764697,233.21,233.15,0.12549]
[1738132672982,16.94764697,233.21,233.15,23.902374]
[1738132673293,16.94764697,233.21,233.15,0.12549]
[1738132673502,16.94764697,233.21,233.12,16.94764697]
[1738132673708,16.94764697,233.21,233.15,20.0]
[1738132673995,16.94764697,233.19,233.13,0.12549]
[1738132674993,16.94764697,233.19,233.13,20.12549]
[1738132677102,0.03,233.23,233.21,0.12549]
[1738132677270,0.03,233.23,233.21,40.85002097]
[1738132678897,0.03,233.23,233.22,20.0]
[1738132679594,0.03,233.23,233.21,0.12549]
[1738132679994,0.03,233.23,233.2,20.0]
[1738132681496,0.03,233.23,233.22,20.0]
[1738132681701,0.03,233.23,233.21,17.07313697]
[1738132682884,0.03,233.23,233.21,0.12549]
[1738132683301,0.03,233.23,233.22,20.0]
[1738132684101,0.03,233.23,233.22,20.12549]
[1738132685278,0.03,233.23,233.22,43.902374]
[1738132685495,0.03,233.32,233.27,0.12549]
[1738132686496,16.94764697,233.28,233.22,3.1]
[1738132686701,16.94764697,233.26,233.22,3.1]
[1738132687280,16.94764697,233.26,233.23,0.12549]
[1738132687596,16.94764697,233.24,233.15,10.6163]
[1738132687780,16.94764697,233.24,233.16,40.85002097]
[1738132688095,18.66244697,233.26,233.21,20.0]
[1738132688399,0.03,233.32,233.26,20.12549]
[1738132688602,0.03,233.32,233.29,0.12549]
[1738132691804,16.94764697,233.31,233.24,16.94764697]
[1738132692105,16.94764697,233.31,233.25,0.12549]
[1738132692798,0.03,233.32,233.25,0.12549]
[1738132693001,0.03,233.32,233.28,0.12549]
[1738132693878,0.03,233.32,233.27,0.12549]
[1738132695099,0.03,233.32,233.25,0.12549]
[1738132697285,0.03,233.32,233.27,0.12549]
[1738132698011,0.03,233.32,233.24,16.94764697]
[1738132698503,0.03,233.32,233.31,17.07313697]
[1738132698691,0.03,233.32,233.31,40.85002097]
[1738132700089,0.03,233.32,233.31,0.12549]
[1738132700499,0.03,233.32,233.27,16.94764697]
[1738132700694,0.03,233.32,233.25,17.73160042]
[1738132701000,0.03,233.32,233.25,16.94764697]
[1738132701185,0.03,233.32,233.26,0.12549]
[1738132702526,16.94764697,233.3,233.23,0.063]
[1738132702704,16.94764697,233.28,233.23,0.063]
[1738132702901,16.94764697,233.26,233.23,0.063]
[1738132703211,16.94764697,233.24,233.23,0.063]
[1738132703903,16.94764697,233.28,233.23,0.063]
[1738132704204,16.94764697,233.26,233.23,0.063]
[1738132705315,16.94764697,233.28,233.23,0.063]
[1738132706306,0.03,233.32,233.25,23.902374]
[1738132708822,0.03,233.32,233.3,20.0]
[1738132709120,0.03,233.32,233.3,36.94764697]
[1738132711114,0.03,233.32,233.3,20.0]
[1738132711325,0.03,233.32,233.31,0.12549]
[1738132711612,0.03,233.32,233.27,26.876884]
[1738132711922,16.94764697,233.28,233.23,0.063]
[1738132712212,16.94764697,233.26,233.23,0.063]
[1738132713206,16.94764697,233.28,233.23,0.063]
[1738132713718,0.03,233.32,233.26,0.12549]
[1738132713719,16.97764697,233.32,233.26,0.12549]
[1738132714221,0.03,233.32,233.27,23.776884]
[1738132714632,0.03,233.32,233.28,20.0]
[1738132714795,0.03,233.32,233.26,4.287]
[1738132714796,0.03,233.32,233.25,20.0]
[1738132714998,16.97764697,233.32,233.26,0.12549]
[1738132715204,18.69194697,233.32,233.26,0.12549]
[1738132715405,18.69194697,233.32,233.26,20.0]
[1738132716603,16.94764697,233.3,233.23,0.063]
[1738132717621,16.94764697,233.28,233.23,0.063]
[1738132717804,16.94764697,233.28,233.23,5.80948135]
[1738132717999,18.66224697,233.28,233.23,5.80948135]
[1738132718200,16.94764697,233.26,233.23,5.68399135]
[1738132718413,16.94764697,233.24,233.23,5.68399135]
[1738132719033,16.94764697,233.24,233.23,3.18657999]
[1738132719608,16.94764697,233.24,233.23,0.063]
[1738132720113,16.94764697,233.26,233.23,0.063]
[1738132720633,1.7147,233.27,233.23,0.063]
[1738132720634,16.94764697,233.24,233.23,0.063]
[1738132721931,18.66254697,233.24,233.23,0.063]
[1738132724043,18.66254697,233.24,233.23,0.0001]
[1738132724639,22.94994697,233.24,233.15,3.1310086]
[1738132724819,16.94764697,233.16,233.15,3.1310086]
[1738132726217,18.66314697,233.16,233.1,3.1310086]
[1738132726432,16.94764697,233.13,233.1,3.1310086]
[1738132727008,16.94764697,233.15,233.1,3.1310086]
[1738132727933,16.94764697,233.15,233.1,0.063]
[1738132728733,16.44764697,233.15,233.1,0.063]
[1738132729108,3.93600227,233.25,233.1,23.839884]
[1738132729109,16.94764697,233.17,233.1,23.839884]
[1738132729312,4.2873,233.25,233.1,23.839884]
[1738132729313,16.94764697,233.19,233.1,40.78753097]
[1738132729932,16.94764697,233.19,233.12,0.12549]
[1738132730539,16.94764697,233.19,233.12,4.41499]
[1738132731541,16.94764697,233.23,233.15,0.12549]
[1738132731841,16.94764697,233.27,233.2,0.12549]
[1738132732052,16.94764697,233.25,233.17,16.94764697]
[1738132732551,16.94764697,233.23,233.17,4.2887]
[1738132732751,16.94764697,233.27,233.17,21.23634697]
[1738132732929,16.94764697,233.27,233.19,16.94764697]
[1738132733248,16.94764697,233.29,233.2,23.902374]
[1738132733541,16.94764697,233.29,233.21,16.94764697]
[1738132733742,16.94764697,233.29,233.23,0.12549]
[1738132735441,16.94764697,233.29,233.23,4.41299]
[1738132736142,16.94764697,233.29,233.25,0.12549]
[1738132736851,16.94764697,233.27,233.22,4.2876]